fUST/lending_fUST_20250610
["ID","MTS","AMOUNT","RATE_DAILY","PERIOD"]
[365267934,1749570642702,-402.98247575,0.00021095,4]
[365267936,1749570642712,-460.0,0.00021095,4]
[365267938,1749570642721,-814.81,0.00021095,4]
[365267940,1749570642731,-460.0,0.00021095,4]
[365267942,1749570642741,-460.0,0.00021095,4]
[365267944,1749570642751,-460.0,0.00021095,4]
[365267946,1749570642761,-403.67696952,0.00021095,4]
[365267948,1749570642770,-255.46489381,0.00021095,4]
[365267950,1749570642780,-548.80137931,0.00021095,4]
[365267952,1749570642789,-1416.8,0.00021095,4]
[365267954,1749570642798,-366.17748023,0.00021095,4]
[365267956,1749570642808,-440.0,0.00021095,4]
[365267958,1749570642817,-460.0,0.00021095,4]
[365267960,1749570642826,-460.0,0.00021095,4]
[365267962,1749570642836,-460.0,0.00021095,4]
[365267964,1749570642845,-460.0,0.00021095,4]
[365267966,1749570642855,-460.0,0.00021095,4]
[365267968,1749570642865,-440.0,0.00021095,4]
[365267970,1749570642874,-460.0,0.00021095,4]
[365267972,1749570642883,-460.0,0.00021095,4]
[365267974,1749570642893,-460.0,0.00021095,4]
[365267976,1749570642903,-460.0,0.00021095,4]
[365267978,1749570642912,-460.0,0.00021095,4]
[365267980,1749570642922,-460.0,0.00021095,4]
[365267982,1749570642932,-1837.17,0.00021095,4]
[365267984,1749570642943,-404.04356514,0.00021095,4]
[365267986,1749570642952,-173.51602027,0.00021095,4]
[365267988,1749570642962,-1153.37,0.00021095,4]
[365267990,1749570642970,-460.0,0.00021095,4]
[365267992,1749570642979,-460.0,0.00021095,4]
[365267994,1749570642989,-460.0,0.00021095,4]
[365267996,1749570642998,-460.0,0.00021095,4]
[365267998,1749570643007,-460.0,0.00021095,4]
[365268001,1749570643016,-469.59,0.00021095,4]
[365268004,1749570643026,-564.37,0.000211,2]
[365268006,1749570643035,-443.72833664,0.00021147,2]
[365268008,1749570643045,-662.84716369,0.00021176,4]
[365268010,1749570643054,-298.11348974,0.00021221,2]
[365268012,1749570643063,-662.84716369,0.00021314,5]
[365268013,1749570643072,-8332.01,0.00021368,2]
[365268014,1749570643081,-8332.01,0.00021368,2]
[365268015,1749570643091,-8332.01,0.00021368,2]
[365268016,1749570643100,-8332.01,0.00021368,2]
[365268017,1749570643109,-8332.01,0.00021368,2]
[365268019,1749570643118,-8332.01,0.00021368,2]
[365268021,1749570643128,-420.0,0.00021369,4]
[365268023,1749570643137,-460.0,0.00021369,4]
[365268024,1749570643146,-400.0,0.00021369,4]
[365268026,1749570643155,-460.0,0.00021369,4]
[365268027,1749570643164,-460.0,0.00021369,4]
[365268028,1749570643173,-420.10536947,0.00021369,4]
[365268029,1749570643183,-460.0,0.00021369,4]
[365268030,1749570643193,-460.0,0.00021369,4]
[365268031,1749570643202,-509.06473254,0.00021369,4]
[365268032,1749570643211,-460.0,0.00021369,4]
[365268033,1749570643221,-460.0,0.00021369,4]
[365268034,1749570643230,-460.0,0.00021369,4]
[365268035,1749570643240,-350.0,0.00021369,4]
[365268036,1749570643249,-460.0,0.00021369,4]
[365268037,1749570643258,-460.0,0.00021369,4]
[365268038,1749570643267,-460.0,0.00021369,4]
[365268039,1749570643280,-460.0,0.00021369,4]
[365268040,1749570643290,-460.0,0.00021369,4]
[365268041,1749570643299,-400.0,0.00021369,4]
[365268042,1749570643308,-460.0,0.00021369,4]
[365268043,1749570643318,-466.62531999,0.00021369,4]
[365268044,1749570643327,-374.00149886,0.00021369,4]
[365268045,1749570643337,-410.0,0.00021369,4]
[365268046,1749570643346,-400.0,0.00021369,4]
[365268047,1749570643355,-460.0,0.00021369,4]
[365268048,1749570643365,-460.0,0.00021369,4]
[365268049,1749570643374,-460.0,0.00021369,4]
[365268050,1749570643383,-460.0,0.00021369,4]
[365268051,1749570643392,-460.0,0.00021369,4]
[365268052,1749570643402,-460.0,0.00021369,4]
[365268053,1749570643413,-460.0,0.00021369,4]
[365268054,1749570643422,-460.0,0.00021369,4]
[365268055,1749570643431,-540.0,0.00021369,4]
[365268056,1749570643442,-460.0,0.00021369,4]
[365268057,1749570643451,-379.99840326,0.00021369,4]
[365268058,1749570643461,-489.18363522,0.00021369,4]
[365268059,1749570643474,-460.0,0.00021369,4]
[365268060,1749570643483,-420.0,0.00021369,4]
[365268061,1749570643492,-170.96226806,0.00021369,4]
[365268062,1749570643502,-460.0,0.00021369,4]
[365268063,1749570643511,-400.0,0.00021369,4]
[365268064,1749570643520,-460.0,0.00021369,4]
[365268065,1749570643530,-460.0,0.00021369,4]
[365268066,1749570643539,-460.0,0.00021369,4]
[365268067,1749570643550,-218.51517768,0.00021369,4]
[365268068,1749570643560,-410.0,0.00021369,4]
[365268069,1749570643569,-460.0,0.00021369,4]
[365268070,1749570643578,-460.0,0.00021369,4]
[365268071,1749570643587,-460.0,0.00021369,4]
[365268072,1749570643597,-460.0,0.00021369,4]
[365268073,1749570643606,-460.0,0.00021369,4]
[365268074,1749570643616,-460.0,0.00021369,4]
[365268075,1749570643626,-460.0,0.00021369,4]
[365268076,1749570643636,-460.0,0.00021369,4]
[365268077,1749570643645,-440.0,0.00021369,4]
[365268078,1749570643655,-460.0,0.00021369,4]
[365268079,1749570643665,-378.97257767,0.00021369,4]
[365268080,1749570643674,-460.0,0.00021369,4]
[365268081,1749570643685,-460.0,0.00021369,4]
[365268082,1749570643694,-460.0,0.00021369,4]
[365268083,1749570643703,-420.0,0.00021369,4]
[365268084,1749570643713,-460.0,0.00021369,4]
[365268085,1749570643723,-239.04150137,0.00021369,4]
[365268086,1749570643732,-400.0,0.00021369,4]
[365268087,1749570643742,-401.98555472,0.00021369,4]
[365268088,1749570643752,-250.59963243,0.00021369,4]
[365268089,1749570643762,-192.76118036,0.00021369,4]
[365268090,1749570643772,-460.0,0.00021369,4]
[365268091,1749570643782,-513.84658708,0.00021369,4]
[365268092,1749570643791,-410.0,0.00021369,4]
[365268093,1749570643801,-410.0,0.00021369,4]
[365268094,1749570643811,-460.0,0.00021369,4]
[365268095,1749570643821,-420.0,0.00021369,4]
[365268096,1749570643831,-410.0,0.00021369,4]
[365268097,1749570643841,-460.0,0.00021369,4]
[365268098,1749570643851,-211.61168407,0.00021369,4]
[365268099,1749570643860,-460.0,0.00021369,4]
[365268100,1749570643870,-420.0,0.00021369,4]
[365268101,1749570643879,-420.0,0.00021369,4]
[365268102,1749570643890,-460.0,0.00021369,4]
[365268103,1749570643899,-460.0,0.00021369,4]
[365268104,1749570643909,-216.12578421,0.00021369,4]
[365268105,1749570643919,-420.0,0.00021369,4]
[365268106,1749570643928,-460.0,0.00021369,4]
[365268107,1749570643940,-460.0,0.00021369,4]
[365268108,1749570643949,-420.0,0.00021369,4]
[365268109,1749570643959,-460.0,0.00021369,4]
[365268110,1749570643969,-460.0,0.00021369,4]
[365268111,1749570643978,-460.0,0.00021369,4]
[365268112,1749570643988,-460.0,0.00021369,4]
[365268113,1749570643997,-460.0,0.00021369,4]
[365268114,1749570644006,-460.0,0.00021369,4]
[365268115,1749570644016,-460.0,0.00021369,4]
[365268116,1749570644025,-380.0,0.00021369,4]
[365268117,1749570644034,-309.31344587,0.00021369,4]
[365268118,1749570644044,-460.0,0.00021369,4]
[365268119,1749570644054,-460.0,0.00021369,4]
[365268120,1749570644063,-400.0,0.00021369,4]
[365268121,1749570644073,-460.0,0.00021369,4]
[365268122,1749570644082,-229.09772759,0.00021369,4]
[365268123,1749570644092,-460.0,0.00021369,4]
[365268124,1749570644101,-460.0,0.00021369,4]
[365268125,1749570644111,-460.0,0.00021369,4]
[365268126,1749570644120,-460.0,0.00021369,4]
[365268127,1749570644129,-390.0,0.00021369,4]
[365268128,1749570644139,-460.0,0.00021369,4]
[365268129,1749570644148,-1334.73,0.00021369,4]
[365268130,1749570644158,-400.0,0.00021369,4]
[365268131,1749570644167,-460.0,0.00021369,4]
[365268132,1749570644176,-460.0,0.00021369,4]
[365268133,1749570644187,-340.0,0.00021369,4]
[365268134,1749570644196,-460.0,0.00021369,4]
[365268135,1749570644205,-460.0,0.00021369,4]
[365268136,1749570644215,-460.0,0.00021369,4]
[365268137,1749570644224,-650.05,0.00021369,4]
[365268138,1749570644234,-460.0,0.00021369,4]
[365268139,1749570644243,-440.0,0.00021369,4]
[365268140,1749570644253,-500.0,0.00021369,4]
[365268141,1749570644262,-460.0,0.00021369,4]
[365268142,1749570644273,-460.0,0.00021369,4]
[365268143,1749570644283,-460.0,0.00021369,4]
[365268144,1749570644292,-460.0,0.00021369,4]
[365268145,1749570644302,-327.75166967,0.00021369,4]
[365268146,1749570644312,-460.0,0.00021369,4]
[365268147,1749570644322,-460.0,0.00021369,4]
[365268148,1749570644332,-460.0,0.00021369,4]
[365268149,1749570644342,-400.0,0.00021369,4]
[365268150,1749570644474,-460.0,0.00021369,4]
[365268151,1749570644486,-812.5,0.00021369,4]
[365268152,1749570644496,-460.0,0.00021369,4]
[365268153,1749570644505,-825.32,0.00021369,4]
[365268154,1749570644514,-460.0,0.00021369,4]
[365268155,1749570644526,-460.0,0.00021369,4]
[365268156,1749570644535,-460.0,0.00021369,4]
[365268157,1749570644545,-460.0,0.00021369,4]
[365268158,1749570644556,-460.0,0.00021369,4]
[365268159,1749570644566,-410.0,0.00021369,4]
[365268160,1749570644575,-460.0,0.00021369,4]
[365268161,1749570644584,-460.0,0.00021369,4]
[365268162,1749570644594,-527.68,0.00021369,4]
[365268163,1749570644603,-460.0,0.00021369,4]
[365268164,1749570644613,-460.0,0.00021369,4]
[365268165,1749570644622,-460.0,0.00021369,4]
[365268166,1749570644632,-410.0,0.00021369,4]
[365268167,1749570644642,-410.0,0.00021369,4]
[365268168,1749570644652,-460.0,0.00021369,4]
[365268169,1749570644661,-460.0,0.00021369,4]
[365268170,1749570644671,-460.0,0.00021369,4]
[365268171,1749570644681,-460.0,0.00021369,4]
[365268172,1749570644692,-1047.45,0.00021369,4]
[365268173,1749570644701,-460.0,0.00021369,4]
[365268174,1749570644710,-460.0,0.00021369,4]
[365268175,1749570644720,-923.93,0.00021369,4]
[365268176,1749570644729,-460.0,0.00021369,4]
[365268177,1749570644739,-549.64,0.00021369,4]
[365268178,1749570644748,-460.0,0.00021369,4]
[365268179,1749570644757,-460.0,0.00021369,4]
[365268180,1749570644767,-460.0,0.00021369,4]
[365268181,1749570644776,-410.0,0.00021369,4]
[365268182,1749570644785,-460.0,0.00021369,4]
[365268183,1749570644794,-420.0,0.00021369,4]
[365268184,1749570644803,-460.0,0.00021369,4]
[365268185,1749570644812,-420.0,0.00021369,4]
[365268186,1749570644821,-400.0,0.00021369,4]
[365268187,1749570644831,-460.0,0.00021369,4]
[365268188,1749570644841,-280.0,0.00021369,4]
[365268189,1749570644850,-460.0,0.00021369,4]
[365268190,1749570644860,-460.0,0.00021369,4]
[365268191,1749570644870,-460.0,0.00021369,4]
[365268192,1749570644879,-716.15,0.00021369,4]
[365268193,1749570644889,-460.0,0.00021369,4]
[365268194,1749570644898,-460.0,0.00021369,4]
[365268195,1749570644908,-460.0,0.00021369,4]
[365268196,1749570644918,-460.0,0.00021369,4]
[365268197,1749570644927,-626.47,0.00021369,4]
[365268198,1749570644938,-480.0,0.00021369,4]
[365268199,1749570644948,-440.0,0.00021369,4]
[365268200,1749570644959,-460.0,0.00021369,2]
[365268201,1749570644969,-410.0,0.00021369,4]
[365268202,1749570644979,-1679.86,0.00021369,4]
[365268203,1749570644988,-460.0,0.00021369,4]
[365268204,1749570644998,-460.0,0.00021369,4]
[365268205,1749570645007,-460.0,0.00021369,4]
[365268206,1749570645018,-460.0,0.00021369,4]
[365268207,1749570645028,-460.0,0.00021369,4]
[365268208,1749570645039,-460.0,0.00021369,4]
[365268209,1749570645049,-420.0,0.00021369,4]
[365268210,1749570645059,-410.0,0.00021369,4]
[365268211,1749570645068,-460.0,0.00021369,4]
[365268212,1749570645077,-1525.67,0.00021369,4]
[365268213,1749570645087,-460.0,0.00021369,4]
[365268214,1749570645096,-706.05,0.00021369,4]
[365268215,1749570645106,-698.81,0.00021369,4]
[365268216,1749570645116,-1554.25,0.00021369,4]
[365268217,1749570645125,-460.0,0.00021369,4]
[365268218,1749570645135,-460.0,0.00021369,4]
[365268219,1749570645144,-460.0,0.00021369,4]
[365268220,1749570645153,-460.0,0.00021369,4]
[365268221,1749570645163,-460.0,0.00021369,4]
[365268222,1749570645172,-460.0,0.00021369,4]
[365268223,1749570645182,-460.0,0.00021369,4]
[365268224,1749570645192,-460.0,0.00021369,4]
[365268225,1749570645202,-1965.04,0.00021369,4]
[365268226,1749570645211,-460.0,0.00021369,4]
[365268227,1749570645220,-460.0,0.00021369,4]
[365268228,1749570645230,-460.0,0.00021369,4]
[365268229,1749570645239,-460.0,0.00021369,4]
[365268230,1749570645248,-460.0,0.00021369,4]
[365268231,1749570645258,-380.0,0.00021369,4]
[365268232,1749570645267,-460.0,0.00021369,4]
[365268233,1749570645276,-460.0,0.00021369,4]
[365268234,1749570645286,-460.0,0.00021369,4]
[365268235,1749570645296,-460.0,0.00021369,4]
[365268236,1749570645305,-814.81,0.00021369,4]
[365268237,1749570645315,-199.57021451,0.00021369,4]
[365268238,1749570645324,-460.0,0.00021369,4]
[365268239,1749570645333,-460.0,0.00021369,4]
[365268240,1749570645342,-1416.8,0.00021369,4]
[365268241,1749570645352,-460.0,0.00021369,4]
[365268242,1749570645361,-460.0,0.00021369,4]
[365268243,1749570645370,-460.0,0.00021369,4]
[365268245,1749570645379,-460.0,0.00021369,4]
[365268247,1749570645388,-296.18006444,0.00021369,4]
[365268249,1749570645398,-460.0,0.00021369,4]
[365268251,1749570645407,-460.0,0.00021369,4]
[365268253,1749570645417,-460.0,0.00021369,4]
[365268255,1749570645427,-460.0,0.00021369,4]
[365268257,1749570645437,-460.0,0.00021369,4]
[365268259,1749570645447,-1837.17,0.00021369,4]
[365268261,1749570645456,-1153.37,0.00021369,4]
[365268263,1749570645466,-460.0,0.00021369,4]
[365268265,1749570645477,-460.0,0.00021369,4]
[365268267,1749570645487,-460.0,0.00021369,4]
[365268269,1749570645496,-460.0,0.00021369,4]
[365268271,1749570645506,-330.0,0.00021369,4]
[365268273,1749570645516,-469.59,0.00021369,4]
[365268275,1749570645526,-420.0,0.00021372,2]
[365268277,1749570645535,-500.0,0.00021373,2]
[365268279,1749570645547,-500.0,0.00021373,2]
[365268281,1749570645556,-500.0,0.00021373,2]
[365268283,1749570645565,-600.0,0.00021373,2]
[365268285,1749570645575,-546.76755518,0.00021373,2]
[365268287,1749570645583,-500.0,0.00021373,2]
[365268289,1749570645593,-298.11348974,0.00021448,2]
[365268291,1749570645603,-662.84716369,0.00021452,5]
[365268293,1749570645612,-443.72833664,0.00021462,2]
[365268295,1749570645621,-1617.74,0.00021589,2]
[365268297,1749570645631,-662.84716369,0.0002159,5]
[365268299,1749570645641,-234.58344211,0.00021621,2]
[365268302,1749570645651,-935.52355721,0.00021621,2]
[365268304,1749570645660,-1008.96563176,0.00021621,2]
[365268305,1749570645669,-1000.0,0.00021621,2]
[365268307,1749570645678,-1013.67772657,0.00021621,2]
[365268309,1749570645689,-8332.01,0.00021642,2]
[365268311,1749570645698,-8332.01,0.00021642,2]
[365268314,1749570645708,-8332.01,0.00021642,2]
[365268316,1749570645717,-8332.01,0.00021642,2]
[365268317,1749570645727,-8332.01,0.00021642,2]
[365268320,1749570645736,-8332.01,0.00021642,2]
[365268321,1749570645746,-8332.09245088,0.00021642,2]
[365268323,1749570645757,-151.0,0.00021643,2]
[365268325,1749570645767,-151.0,0.00021643,2]
[365268327,1749570645777,-350.0,0.00021643,4]
[365268330,1749570645787,-460.0,0.00021643,4]
[365268331,1749570645796,-460.0,0.00021643,4]
[365268333,1749570645805,-400.0,0.00021643,4]
[365268335,1749570645814,-460.0,0.00021643,4]
[365268337,1749570645824,-339.11841768,0.00021643,4]
[365268339,1749570645833,-460.0,0.00021643,4]
[365268341,1749570645843,-330.0,0.00021643,4]
[365268343,1749570645853,-460.0,0.00021643,4]
[365268345,1749570645862,-350.0,0.00021643,4]
[365268347,1749570645871,-400.0,0.00021643,4]
[365268349,1749570645881,-390.0,0.00021643,4]
[365268351,1749570645891,-460.0,0.00021643,4]
[365268354,1749570645903,-460.0,0.00021643,4]
[365268357,1749570645913,-460.0,0.00021643,4]
[365268360,1749570645923,-420.0,0.00021643,4]
[365268362,1749570645932,-420.0,0.00021643,4]
[365268365,1749570645943,-420.0,0.00021643,4]
[365268367,1749570645953,-420.0,0.00021643,4]
[365268369,1749570645963,-370.0,0.00021643,4]
[365268371,1749570645972,-460.0,0.00021643,4]
[365268373,1749570645982,-460.0,0.00021643,4]
[365268375,1749570645992,-460.0,0.00021643,4]
[365268377,1749570646001,-460.0,0.00021643,4]
[365268380,1749570646010,-400.0,0.00021643,4]
[365268382,1749570646019,-460.0,0.00021643,4]
[365268385,1749570646028,-400.0,0.00021643,4]
[365268387,1749570646037,-400.0,0.00021643,4]
[365268389,1749570646046,-321.05730704,0.00021643,4]
[365268391,1749570646056,-400.0,0.00021643,4]
[365268393,1749570646066,-460.0,0.00021643,4]
[365268395,1749570646075,-271.21596641,0.00021643,4]
[365268397,1749570646084,-460.0,0.00021643,4]
[365268399,1749570646094,-312.86135184,0.00021643,4]
[365268401,1749570646103,-370.0,0.00021643,4]
[365268403,1749570646113,-460.0,0.00021643,4]
[365268405,1749570646123,-400.0,0.00021643,4]
[365268407,1749570646133,-460.0,0.00021643,4]
[365268409,1749570646143,-460.0,0.00021643,4]
[365268411,1749570646152,-460.0,0.00021643,4]
[365268413,1749570646162,-390.0,0.00021643,4]
[365268416,1749570646173,-423.59725457,0.00021643,4]
[365268418,1749570646183,-460.0,0.00021643,4]
[365268420,1749570646198,-460.0,0.00021643,4]
[365268422,1749570646207,-460.0,0.00021643,4]
[365268423,1749570646217,-380.0,0.00021643,4]
[365268426,1749570646227,-550.0,0.00021643,4]
[365268428,1749570646238,-460.0,0.00021643,4]
[365268430,1749570646247,-460.0,0.00021643,4]
[365268432,1749570646257,-460.0,0.00021643,4]
[365268434,1749570646266,-460.0,0.00021643,4]
[365268436,1749570646277,-378.40941849,0.00021643,4]
[365268438,1749570646286,-390.0,0.00021643,4]
[365268440,1749570646295,-400.0,0.00021643,4]
[365268441,1749570646305,-360.0,0.00021643,4]
[365268443,1749570646315,-382.55137291,0.00021643,4]
[365268445,1749570646324,-460.0,0.00021643,4]
[365268448,1749570646334,-460.0,0.00021643,4]
[365268450,1749570646343,-460.0,0.00021643,4]
[365268452,1749570646353,-460.0,0.00021643,4]
[365268454,1749570646363,-460.0,0.00021643,4]
[365268455,1749570646372,-320.0,0.00021643,4]
[365268457,1749570646382,-359.93764939,0.00021643,4]
[365268460,1749570646391,-460.0,0.00021643,4]
[365268462,1749570646401,-1334.73,0.00021643,4]
[365268464,1749570646410,-524.39596981,0.00021643,4]
[365268466,1749570646420,-250.26799731,0.00021643,4]
[365268468,1749570646429,-460.0,0.00021643,4]
[365268469,1749570646441,-460.0,0.00021643,4]
[365268471,1749570646450,-460.0,0.00021643,4]
[365268473,1749570646460,-650.05,0.00021643,4]
[365268474,1749570646473,-460.0,0.00021643,4]
[365268476,1749570646482,-460.0,0.00021643,4]
[365268478,1749570646491,-460.0,0.00021643,4]
[365268480,1749570646500,-380.0,0.00021643,4]
[365268482,1749570646510,-460.0,0.00021643,4]
[365268484,1749570646519,-460.0,0.00021643,4]
[365268486,1749570646528,-460.0,0.00021643,4]
[365268488,1749570646538,-460.0,0.00021643,4]
[365268490,1749570646549,-460.0,0.00021643,4]
[365268492,1749570646559,-812.5,0.00021643,4]
[365268494,1749570646568,-460.0,0.00021643,4]
[365268495,1749570646577,-825.32,0.00021643,4]
[365268497,1749570646587,-460.0,0.00021643,4]
[365268499,1749570646596,-460.0,0.00021643,4]
[365268501,1749570646606,-460.0,0.00021643,4]
[365268503,1749570646615,-460.0,0.00021643,4]
[365268505,1749570646625,-460.0,0.00021643,4]
[365268507,1749570646635,-460.0,0.00021643,4]
[365268509,1749570646645,-460.0,0.00021643,4]
[365268511,1749570646653,-527.68,0.00021643,4]
[365268513,1749570646663,-460.0,0.00021643,4]
[365268515,1749570646673,-460.0,0.00021643,4]
[365268517,1749570646682,-460.0,0.00021643,4]
[365268519,1749570646693,-460.0,0.00021643,4]
[365268521,1749570646703,-240.0,0.00021643,4]
[365268523,1749570646712,-460.0,0.00021643,4]
[365268525,1749570646721,-460.0,0.00021643,4]
[365268527,1749570646731,-1047.45,0.00021643,4]
[365268529,1749570646741,-460.0,0.00021643,4]
[365268531,1749570646750,-460.0,0.00021643,4]
[365268533,1749570646760,-923.93,0.00021643,4]
[365268535,1749570646769,-549.64,0.00021643,4]
[365268537,1749570646779,-460.0,0.00021643,4]
[365268539,1749570646789,-460.0,0.00021643,4]
[365268541,1749570646798,-460.0,0.00021643,4]
[365268543,1749570646807,-460.0,0.00021643,4]
[365268545,1749570646816,-460.0,0.00021643,4]
[365268547,1749570646825,-460.0,0.00021643,4]
[365268549,1749570646834,-460.0,0.00021643,4]
[365268552,1749570646844,-460.0,0.00021643,4]
[365268554,1749570646854,-320.0,0.00021643,4]
[365268556,1749570646863,-716.15,0.00021643,4]
[365268558,1749570646872,-460.0,0.00021643,4]
[365268560,1749570646882,-460.0,0.00021643,4]
[365268562,1749570646891,-460.0,0.00021643,4]
[365268564,1749570646902,-460.0,0.00021643,4]
[365268566,1749570646911,-626.47,0.00021643,4]
[365268568,1749570646921,-460.0,0.00021643,2]
[365268570,1749570646930,-1679.86,0.00021643,4]
[365268572,1749570646941,-460.0,0.00021643,4]
[365268574,1749570646950,-460.0,0.00021643,4]
[365268576,1749570646960,-460.0,0.00021643,4]
[365268577,1749570646969,-460.0,0.00021643,4]
[365268579,1749570646979,-460.0,0.00021643,4]
[365268581,1749570646989,-460.0,0.00021643,4]
[365268583,1749570646998,-198.85,0.00021643,4]
[365268585,1749570647008,-1525.67,0.00021643,4]
[365268587,1749570647017,-460.0,0.00021643,4]
[365268589,1749570647027,-706.05,0.00021643,4]
[365268591,1749570647036,-698.81,0.00021643,4]
[365268593,1749570647046,-1554.25,0.00021643,4]
[365268595,1749570647055,-460.0,0.00021643,4]
[365268597,1749570647064,-460.0,0.00021643,4]
[365268599,1749570647074,-460.0,0.00021643,4]
[365268601,1749570647083,-460.0,0.00021643,4]
[365268602,1749570647092,-460.0,0.00021643,4]
[365268604,1749570647101,-254.60910511,0.00021643,4]
[365268606,1749570647111,-460.0,0.00021643,4]
[365268608,1749570647120,-460.0,0.00021643,4]
[365268610,1749570647130,-1965.04,0.00021643,4]
[365268612,1749570647139,-460.0,0.00021643,4]
[365268614,1749570647149,-460.0,0.00021643,4]
[365268616,1749570647159,-460.0,0.00021643,4]
[365268618,1749570647169,-442.32291808,0.00021643,4]
[365268620,1749570647179,-460.0,0.00021643,4]
[365268622,1749570647190,-370.0,0.00021643,4]
[365268624,1749570647199,-460.0,0.00021643,4]
[365268626,1749570647210,-460.0,0.00021643,4]
[365268628,1749570647219,-814.81,0.00021643,4]
[365268630,1749570647228,-460.0,0.00021643,4]
[365268632,1749570647237,-460.0,0.00021643,4]
[365268644,1749570647246,-1416.8,0.00021643,4]
[365268647,1749570647360,-460.0,0.00021643,4]
[365268649,1749570647369,-460.0,0.00021643,4]
[365268651,1749570647378,-460.0,0.00021643,4]
[365268652,1749570647386,-460.0,0.00021643,4]
[365268654,1749570647396,-460.0,0.00021643,4]
[365268656,1749570647405,-513.92253522,0.00021643,4]
[365268658,1749570647414,-460.0,0.00021643,4]
[365268660,1749570647424,-460.0,0.00021643,4]
[365268662,1749570647435,-460.0,0.00021643,4]
[365268664,1749570647444,-1837.17,0.00021643,4]
[365268666,1749570647454,-1153.37,0.00021643,4]
[365268668,1749570647463,-460.0,0.00021643,4]
[365268670,1749570647474,-460.0,0.00021643,4]
[365268672,1749570647486,-390.0,0.00021643,4]
[365268674,1749570647495,-460.0,0.00021643,4]
[365268676,1749570647505,-469.59,0.00021643,4]
[365268678,1749570647514,-298.11348974,0.00021674,2]
[365268680,1749570647523,-662.84716369,0.00021728,5]
[365268682,1749570647532,-443.72833664,0.00021736,2]
[365268684,1749570647542,-662.84716369,0.00021866,6]
[365268686,1749570647551,-298.11348974,0.000219,2]
[365268688,1749570647561,-151.0,0.00021917,2]
[365268690,1749570647570,-151.0,0.00021917,2]
[365268692,1749570647579,-400.0,0.00021917,4]
[365268694,1749570647588,-400.0,0.00021917,4]
[365268696,1749570647597,-400.0,0.00021917,4]
[365268698,1749570647607,-460.0,0.00021917,4]
[365268700,1749570647616,-460.0,0.00021917,4]
[365268702,1749570647625,-460.0,0.00021917,4]
[365268704,1749570647634,-290.0,0.00021917,4]
[365268705,1749570647644,-400.0,0.00021917,4]
[365268707,1749570647654,-380.0,0.00021917,4]
[365268709,1749570647663,-280.0,0.00021917,4]
[365268711,1749570647672,-400.0,0.00021917,4]
[365268713,1749570647682,-180.00141876,0.00021917,4]
[365268715,1749570647693,-409.72206538,0.00021917,4]
[365268717,1749570647702,-460.0,0.00021917,4]
[365268719,1749570647712,-380.0,0.00021917,4]
[365268721,1749570647721,-460.0,0.00021917,4]
[365268723,1749570647730,-460.0,0.00021917,4]